Cogmind - Beta 14 --- EXPLORER MODE // 2024.12.08 @ 20:57:23 Player: viper Result: Destroyed by G-50 Soldier with Heavy Laser Performance ------------- Evolutions (4) 2000 Regions Visited (9) 1800 Robots Destroyed (341) 1705 Value Destroyed (11191) 11191 Prototype IDs (12) 240 Alien Tech Used (0) 0 Bonus (880) 880 TOTAL SCORE: 17816 Bonus ------- High Alert Combat Kills 231 Follower Combat Kills 649 Cogmind --------- Core Integrity 0/850 Matter 522/550 Energy 560/560 System Corruption 2% Temperature Cool (9) Movement Treading (240) Ox1 Location -6/Hub_04(d) Parts ------- > --- POWER (2) -------- Cooled Deuterium Engine Quantum Reactor > --- PROPULSION (4) --- Medium Treads Improved Medium Treads Centrium Heavy Treads > --- UTILITY (8) ------ Advanced Heat Sink Cargo Storage Unit Matter Compressor Enhanced Optical Array Improved Signal Interpreter Advanced Targeting Computer Centrium Medium Armor Plating > --- WEAPON (2) ------- Advanced KE Penetrator Advanced KE Penetrator > --- INVENTORY (30) --- Improved Deuterium Engine Enhanced Nuclear Core Micro Nuclear Core Armored Treads Advanced Heat Sink Advanced Heat Sink Improved Sensor Array Advanced Terrain Scanner Centrium Medium Armor Plating Insulated Plating Improved Hacking Suite Assault Rifle Assault Rifle Heavy Assault Rifle Heavy Assault Rifle Heavy Assault Rifle Heavy Assault Rifle Gauss Rifle Flak Gun Coil Gun Heavy Machine Gun Heavy Machine Gun Heavy Assault Cannon Mini Assault Cannon Heavy Flak Cannon Heavy Flak Cannon Bore Cannon Blade Saw Peak State ------------ > --- POWER ------------ Cooled Deuterium Engine Quantum Reactor > --- PROPULSION ------- Medium Treads Improved Medium Treads Centrium Heavy Treads > --- UTILITY ---------- Advanced Heat Sink Cargo Storage Unit Matter Compressor Enhanced Optical Array Improved Signal Interpreter Advanced Targeting Computer Centrium Medium Armor Plating > --- WEAPON ----------- Advanced KE Penetrator Advanced KE Penetrator > --- INVENTORY -------- Improved Deuterium Engine Enhanced Nuclear Core Micro Nuclear Core Armored Treads Advanced Heat Sink Advanced Heat Sink Improved Sensor Array Advanced Terrain Scanner Centrium Medium Armor Plating Insulated Plating Improved Hacking Suite Assault Rifle Assault Rifle Heavy Assault Rifle Heavy Assault Rifle Heavy Assault Rifle Heavy Assault Rifle Gauss Rifle Flak Gun Coil Gun Heavy Machine Gun Heavy Machine Gun Heavy Assault Cannon Mini Assault Cannon Heavy Flak Cannon Heavy Flak Cannon Bore Cannon Blade Saw [Rating: 100] Favorites ----------- Power Ion Engine Engine Ion Engine Power Core Enhanced Nuclear Core Reactor Quantum Reactor Propulsion Armored Treads Treads Armored Treads Leg Flexi-carbon Leg Utility Huge Storage Unit Device Structural Scanner Storage Huge Storage Unit Processor Improved Targeting Computer Protection Utility Shielding Weapon Mini Assault Cannon Ballistic Gun Heavy Assault Rifle Ballistic Cannon Mini Assault Cannon Build | -11 -10 -9 -8 -7 -6 -6 -6 -6 -6 ------- Run | Yrd Mat Mat Mat Fac Fac Ext Cet Arc Hub Slots Evolved 9 | . 1 2 2 2 2 . . . . Power 1 | . . 1 . . . . . . . Propulsion 2 | . . . 2 . . . . . . Utility 6 | . 1 1 . 2 2 . . . . Weapon . | . . . . . . . . . . Parts Attached 118 | 7 4 11 6 30 40 9 4 . 7 Power 31 | 1 . 3 1 9 13 3 1 . . Engine 23 | 1 . 3 1 8 9 1 . . . Core 7 | . . . . 1 4 2 . . . Reactor 1 | . . . . . . . 1 . . Propulsion 33 | 2 . 3 2 10 12 1 1 . 2 Treads 32 | 2 . 3 2 10 11 1 1 . 2 Leg 1 | . . . . . 1 . . . . Wheel . | . . . . . . . . . . Hover . | . . . . . . . . . . Flight . | . . . . . . . . . . Utility 37 | 2 2 1 . 9 13 5 . . 5 Device 16 | . 1 1 . 2 6 3 . . 3 Storage 11 | 1 1 . . 5 4 . . . . Processor 6 | 1 . . . 1 2 1 . . 1 Hackware . | . . . . . . . . . . Protection 4 | . . . . 1 1 1 . . 1 Artifact . | . . . . . . . . . . Weapon 17 | 2 2 4 3 2 2 . 2 . . Energy Gun . | . . . . . . . . . . Energy Cannon . | . . . . . . . . . . Ballistic Gun 11 | 2 2 4 . 1 . . 2 . . Ballistic Cannon 6 | . . . 3 1 2 . . . . Launcher . | . . . . . . . . . . Special Weapon . | . . . . . . . . . . Impact Weapon . | . . . . . . . . . . Slashing Weapon . | . . . . . . . . . . Piercing Weapon . | . . . . . . . . . . Special Melee Weapon . | . . . . . . . . . . Unidentified Prototypes 8 | . . 1 1 1 2 . 2 . 1 Corrupted Parts 1 | . . . . . . . 1 . . System Corruption 1 | . . . . . . . 1 . . Parts Lost 41 | . . . 1 10 25 4 . . 1 Power 12 | . . . 1 2 8 1 . . . Propulsion 14 | . . . . 6 8 . . . . Utility 14 | . . . . 2 8 3 . . 1 Weapon 1 | . . . . . 1 . . . . Highest Loss Streak 5 | . . . 1 3 5 1 . . 1 To Critical Strikes 2 | . . . . . 2 . . . . Average Slot Usage (%) 92 | . 100 99 99 98 80 91 88 87 86 Engine 10 | . 12 19 15 12 7 6 6 6 6 Core 1 | . . . . 1 1 5 1 . . Treads 22 | . 25 19 33 27 13 25 19 18 18 Device 11 | . 12 20 16 9 13 7 6 6 5 Storage 12 | . 12 10 8 16 10 12 12 12 12 Processor 12 | . 12 10 8 11 13 18 18 18 18 Protection 2 | . . . . 4 3 3 6 6 5 Ballistic Gun 7 | . 25 20 11 . . . 7 12 12 Ballistic Cannon 7 | . . . 4 13 11 12 4 . . Peak Build Rating 100 | 7 11 21 35 43 65 68 93 93 100 Average Rating 42 | 5 9 19 28 38 45 64 86 93 94 On Entrance 42 | . 7 11 21 35 31 65 68 93 93 Naked Turns . | . . . . . . . . . . Heaviest Build 244 | 19 92 101 107 123 244 197 211 209 209 Greatest Support 138 | 40 40 40 80 80 110 92 120 120 138 Greatest Overweight (x) 50 | 2 2 4 1 1 50 2 2 1 2 Average Overweight (x) 1 | . 1 2 1 1 2 1 1 1 1 Largest Inventory Capacity 30 | 10 25 25 25 25 30 30 30 30 30 Average Capacity 26 | 7 21 25 25 25 27 30 30 30 30 Most Carried 30 | 3 16 23 25 25 21 28 30 30 30 Average Carried 20 | 1 12 20 21 21 15 23 29 30 29 Final Capacity 30 | 10 25 25 25 25 30 30 30 30 30 Final Carried 30 | 3 16 23 20 18 20 28 30 30 29 Class Distribution -------------------- 65% | Hacker-Mutant 34% | Hauler-Mutant Dominant Class ---------------- Hacker-Mutant | -10/Materials Hacker-Mutant | -9/Materials Hacker-Mutant | -8/Materials Hacker-Mutant | -7/Factory Hauler-Mutant | -6/Factory Hauler-Mutant | -6/Extension Hauler-Mutant | -6/Cetus Hauler-Mutant | -6/Archives Hauler-Mutant | -6/Hub_04(d) Resources | -11 -10 -9 -8 -7 -6 -6 -6 -6 -6 ----------- Run | Yrd Mat Mat Mat Fac Fac Ext Cet Arc Hub Matter Collected 9994 | 203 627 584 643 3157 2154 1484 186 133 823 Remotely . | . . . . . . . . . . Salvage Created 13931 | . 703 1580 1233 2814 2854 1313 161 348 2925 Parts 669 | . 46 110 73 122 93 35 5 19 166 Haulers Intercepted 18 | . 2 4 2 1 4 1 . . 4 Recyclers Shooed 19 | . 4 1 . 7 4 2 . . 1 Parts Field Recycled . | . . . . . . . . . . Retrieved Matter . | . . . . . . . . . . Parts Self-Destructed . | . . . . . . . . . . Prevented . | . . . . . . . . . . Kills | -11 -10 -9 -8 -7 -6 -6 -6 -6 -6 ------- Run | Yrd Mat Mat Mat Fac Fac Ext Cet Arc Hub Combat Hostiles Destroyed 223 | . 9 19 18 72 42 29 3 4 27 Guns 70 | . 9 19 9 . . . 2 4 27 Cannons 153 | . . . 9 72 42 29 1 . . Classes Destroyed 15 | . 5 5 1 2 1 1 . . . Worker 26 | . . 6 1 6 3 . . . 10 Builder 20 | . . 3 2 2 5 . . . 8 Hauler 18 | . 2 4 2 1 4 1 . . 4 Recycler 42 | . 5 5 4 13 9 3 . . 3 Mechanic 2 | . . 1 . . 1 . . . . Operator 4 | . . . . . 1 2 . 1 . Watcher 27 | . 3 5 4 4 4 2 . . 5 Swarmer 27 | . 6 4 2 7 6 2 . . . Grunt 115 | . 3 8 9 43 16 16 2 . 18 Brawler 8 | . . . 2 1 5 . . . . Duelist 6 | . . 1 1 4 . . . . . Sentry 32 | . . 6 4 6 6 3 . 4 3 Hunter 21 | . . . . 5 5 6 . . 5 Programmer 11 | . . . . 6 4 . . . 1 Behemoth 2 | . . . . . . 2 . . . Cetus Guard 1 | . . . . . . . 1 . . Best Kill Streak 18 | . 3 6 6 9 7 7 2 2 18 Combat Bots Only 6 | . 3 6 3 6 5 5 2 2 4 Max Kills in Single Turn 3 | . 1 2 2 2 2 1 1 1 3 Gunslinging 1 | . . . 1 . . . . . . Exploded . | . . . . . . . . . . Melee . | . . . . . . . . . . Uniques/NPCs Destroyed . | . . . . . . . . . . Combat | -11 -10 -9 -8 -7 -6 -6 -6 -6 -6 -------- Run | Yrd Mat Mat Mat Fac Fac Ext Cet Arc Hub Hostile Shots Fired 1580 | . 21 73 77 459 532 230 16 17 155 Missed 451 | . 7 19 23 128 153 74 5 7 35 Damage Taken 9644 | . 66 421 585 2967 2846 1471 81 84 1123 Core 1352 | . 15 9 39 429 519 197 4 . 140 Absorbed by Shields 52 | . . . . . . 27 25 . . Redirected to Shielding 80 | . . . . 36 44 . . . . Ignored by Resistances 6530 | . 50 265 348 1747 1800 1094 176 151 899 Regen/Repaired (Parts) 311 | . . . . 311 . . . . . Core Remaining (%) 84 | 100 94 97 92 38 . . . . . Volleys Fired 816 | . 45 79 79 238 166 88 13 15 93 Largest 2 | . 2 2 2 2 2 2 2 2 2 Hottest 101 | . 46 46 96 96 101 101 101 70 70 Shots Fired 1585 | . 90 158 157 443 320 175 26 30 186 Gun 586 | . 90 158 108 2 . . 12 30 186 Cannon 999 | . . . 49 441 320 175 14 . . Launcher . | . . . . . . . . . . Special . | . . . . . . . . . . Kinetic 1585 | . 90 158 157 443 320 175 26 30 186 Thermal . | . . . . . . . . . . Explosive . | . . . . . . . . . . Electromagnetic . | . . . . . . . . . . Robot Hit Streak 81 | . 22 68 28 32 39 50 64 81 27 Robot Miss Streak 4 | . 2 2 2 2 3 4 . 1 2 Penetration Max 1 | . . . . . . . . . 1 Secondary Targets 6 | . 1 1 2 . . . . . 2 Max Gunslinging Chain 1 | . 1 1 1 . . . . . 1 Shots Hit Robots 1310 | . 69 124 131 364 259 155 24 28 156 Core Hits 698 | . 28 56 51 147 122 177 23 9 85 Critical Kills 29 | . . . . . . . 1 3 25 Critical Parts Destroyed 24 | . 1 . 1 . . . 2 2 18 Critical Strikes 114 | . 1 . 6 28 21 4 4 7 43 Destroy 55 | . 1 . 1 . . . 3 7 43 Blast 59 | . . . 5 28 21 4 1 . . Melee Attacks . | . . . . . . . . . . Impact . | . . . . . . . . . . Slashing . | . . . . . . . . . . Piercing . | . . . . . . . . . . Sneak Attacks . | . . . . . . . . . . Combat Hostiles . | . . . . . . . . . . Follow-up Attacks . | . . . . . . . . . . Damage Inflicted 33836 | . 888 1888 2511 9988 7089 4828 696 740 5208 Guns 10443 | . 888 1888 1428 55 . . 238 738 5208 Cannons 23318 | . . . 1082 9905 7089 4784 458 . . Explosions . | . . . . . . . . . . Melee . | . . . . . . . . . . Ramming 75 | . . . 1 28 . 44 . 2 . Kinetic 33761 | . 888 1888 2510 9960 7089 4784 696 738 5208 Thermal . | . . . . . . . . . . Explosive . | . . . . . . . . . . Electromagnetic . | . . . . . . . . . . Impact . | . . . . . . . . . . Slashing . | . . . . . . . . . . Piercing . | . . . . . . . . . . Highest Corruption 4 | . . . . 4 . . 1 1 2 Average Corruption 1 | . . . . 1 . . 1 1 1 Corruption Purged . | . . . . . . . . . . Corruption Blocked . | . . . . . . . . . . Effects 49 | . . . . 32 . . 1 4 12 Message Errors 9 | . . . . 6 . . . 1 2 Matter Fused 15 | . . . . 7 . . 1 3 4 Heat Flow Errors 4 | . . . . 3 . . . . 1 Energy Discharges 5 | . . . . 3 . . . . 2 Parts Fused 1 | . . . . 1 . . . . . Data Loss (minor) 6 | . . . . 5 . . . . 1 Data Loss (major) 3 | . . . . 1 . . . . 2 Misfires 3 | . . . . 3 . . . . . Weapon Failures 3 | . . . . 3 . . . . . Overload Shots . | . . . . . . . . . . Overflow Damage 311 | . . . . 202 91 18 . . . Projectiles 311 | . . . . 202 91 18 . . . Explosions . | . . . . . . . . . . Melee . | . . . . . . . . . . Knockbacks 156 | . . . 4 77 37 38 . . . Impact . | . . . . . . . . . . Kinetic 146 | . . . 4 72 35 35 . . . Secondary 10 | . . . . 5 2 3 . . . Self-Inflicted Damage . | . . . . . . . . . . Shots . | . . . . . . . . . . Rammed 6 | . . . 1 4 . 1 . . . Targets Rammed 9 | . . . 1 5 . 2 . 1 . Kicked . | . . . . . . . . . . Crushed 3 | . . . . 1 . 1 . 1 . Highest Temperature 573 | . 1 28 247 573 326 264 2 . 130 Average Temperature 111 | . 1 11 61 135 96 74 2 . 35 Received Heat Transfer 5193 | . 18 243 396 1752 1395 621 9 9 750 Effects 43 | . . . . 37 5 1 . . . Shutdowns 20 | . . . . 19 1 . . . . Energy Bleed 9 | . . . . 8 . 1 . . . Interference 9 | . . . . 6 3 . . . . Matter Decay 1 | . . . . . 1 . . . . Damage (minor) 3 | . . . . 3 . . . . . Damage (core) 1 | . . . . 1 . . . . . Siege Activations . | . . . . . . . . . . Robots Corrupted . | . . . . . . . . . . Combat Hostiles . | . . . . . . . . . . Parts Fried . | . . . . . . . . . . Impact Corruptions . | . . . . . . . . . . Robots Melted . | . . . . . . . . . . Combat Hostiles . | . . . . . . . . . . Parts Melted . | . . . . . . . . . . Heat Transferred . | . . . . . . . . . . Parts Sabotaged . | . . . . . . . . . . Parts Stolen . | . . . . . . . . . . Parts Stripped . | . . . . . . . . . . Power Chain Reactions . | . . . . . . . . . . Alert | -11 -10 -9 -8 -7 -6 -6 -6 -6 -6 ------- Run | Yrd Mat Mat Mat Fac Fac Ext Cet Arc Hub Peak Influence 601 | . 157 219 311 601 350 454 213 124 529 Initial 111 | . . . 13 67 111 . 88 11 29 Average 121 | . 32 57 89 223 80 145 109 95 215 Maximum Alert Level 2 | . . 1 1 2 1 2 1 . 2 Low Security (%) 76 | 100 100 92 85 52 87 66 97 100 43 Level 1 18 | . . 7 14 32 12 30 2 . 50 Level 2 4 | . . . . 15 . 2 . . 6 Level 3 . | . . . . . . . . . . Level 4 . | . . . . . . . . . . Level 5 . | . . . . . . . . . . High Security . | . . . . . . . . . . Max Security . | . . . . . . . . . . Squads Dispatched 72 | . 4 3 4 28 11 8 2 . 12 Investigation 30 | . 4 3 1 9 2 5 2 . 4 Extermination 11 | . . . . 6 4 . . . 1 Reinforcement 19 | . . . . 5 5 3 . . 6 Assault 2 | . . . . 1 . . . . 1 Garrison 10 | . . . 3 7 . . . . . Intercept . | . . . . . . . . . . Searches Triggered . | . . . . . . . . . . Construction Impeded 4 | . . . . 1 1 1 . . 1 Haulers Reinforced 7 | . . . . 2 2 . . . 3 Active Scanning Responses . | . . . . . . . . . . Cargo Convoy Interrupts . | . . . . . . . . . . Stealth | -11 -10 -9 -8 -7 -6 -6 -6 -6 -6 --------- Run | Yrd Mat Mat Mat Fac Fac Ext Cet Arc Hub Distress Signals 19 | . 1 1 2 1 4 3 2 . 5 Communications Jammed . | . . . . . . . . . . Distress Signals . | . . . . . . . . . . Times Spotted 317 | . 15 29 29 97 55 41 5 4 42 Peak Tracking Total 5 | . 3 4 4 5 4 4 3 1 5 Tactical Retreats 16 | . . . 1 5 4 3 . . 3 Traps | -11 -10 -9 -8 -7 -6 -6 -6 -6 -6 ------- Run | Yrd Mat Mat Mat Fac Fac Ext Cet Arc Hub Traps Triggered 9 | . . 1 . 6 1 1 . . . Indirectly . | . . . . . . . . . . Trap Hack Attempts . | . . . . . . . . . . Triggered . | . . . . . . . . . . Disarmed 12 | . . . . . . 12 . . . Reprogrammed 4 | . 4 . . . . . . . . Reused . | . . . . . . . . . . Traps Extracted . | . . . . . . . . . . Installed . | . . . . . . . . . . Triggered . | . . . . . . . . . . Machines | -11 -10 -9 -8 -7 -6 -6 -6 -6 -6 ---------- Run | Yrd Mat Mat Mat Fac Fac Ext Cet Arc Hub Machines Disabled 21 | . . 1 . 5 1 1 3 2 8 Max in Single Turn 1 | . . 1 . 1 1 1 . 1 1 Garrison Access 2 | . . . . 1 1 . . . . Machines Repaired . | . . . . . . . . . . Machines Dismantled . | . . . . . . . . . . Machines Sabotaged . | . . . . . . . . . . Overloaded Fab Kills . | . . . . . . . . . . Hacking | -11 -10 -9 -8 -7 -6 -6 -6 -6 -6 --------- Run | Yrd Mat Mat Mat Fac Fac Ext Cet Arc Hub Machines Accessed 43 | . 7 3 3 8 5 9 3 1 4 Terminals 36 | . 7 2 3 6 2 9 3 . 4 Fabricators 3 | . . . . 1 2 . . . . Repair Stations 1 | . . . . 1 . . . . . Recycling Units . | . . . . . . . . . . Scanalyzers 1 | . . 1 . . . . . . . Garrison Access 1 | . . . . . 1 . . . . Total Hacks 168 | . 34 11 10 31 9 27 10 25 11 Successful 112 | . 26 8 4 17 5 17 8 25 2 Failed 56 | . 8 3 6 14 4 10 2 . 9 Catastrophic 9 | . . . 1 2 1 1 1 . 3 Database Lockouts . | . . . . . . . . . . Manual 1 | . . . . . . . . 1 . Terminals 126 | . 34 7 10 24 3 27 10 . 11 Fabricators 8 | . . . . 3 5 . . . . Repair Stations 4 | . . . . 4 . . . . . Recycling Units . | . . . . . . . . . . Scanalyzers 4 | . . 4 . . . . . . . Garrison Access 1 | . . . . . 1 . . . . Terminal Hacks 99 | . 26 4 4 11 2 17 8 25 2 Record 49 | . 9 2 . 2 . 2 8 25 1 Part Schematic 1 | . . . . . . 1 . . . Robot Schematic 1 | . . . . 1 . . . . . Robot Analysis 1 | . . . . . . 1 . . . Prototype ID Bank 2 | . . . . 1 . 1 . . . Open Door 5 | . . . . . 1 4 . . . Level Access Points 1 | . . . . . . 1 . . . Branch Access Points 1 | . . . . 1 . . . . . Emergency Access Points 3 | . 1 . 1 1 . . . . . Alert Level 1 | . 1 . . . . . . . . Unreport Threat 1 | . 1 . . . . . . . . Locate Traps 9 | . 3 . 2 1 1 2 . . . Disarm Traps 2 | . . . . . . 2 . . . Reprogram Traps 1 | . 1 . . . . . . . . Dispatch Records 3 | . 2 . . . . 1 . . . Maintenance Status 2 | . . . 1 . . 1 . . . Security Status 1 | . 1 . . . . . . . . Surveillance Status 1 | . 1 . . . . . . . . Patrol Status 2 | . 1 . . 1 . . . . . Investigation Status 1 | . 1 . . . . . . . . Hauler Manifests 2 | . 1 . . 1 . . . . . Zone Layout 9 | . 3 2 . 2 . 1 . . 1 Fabricator Hacks 4 | . . . . 2 2 . . . . Load Schematic 2 | . . . . 1 1 . . . . Build 2 | . . . . 1 1 . . . . Repair Station Hacks 4 | . . . . 4 . . . . . Scan Component 2 | . . . . 2 . . . . . Repair 2 | . . . . 2 . . . . . Recycling Unit Hacks . | . . . . . . . . . . Scanalyzer 4 | . . 4 . . . . . . . Insert Component 1 | . . 1 . . . . . . . Analyze 3 | . . 3 . . . . . . . Garrison Access Hacks 1 | . . . . . 1 . . . . Seal Access 1 | . . . . . 1 . . . . Unauthorized Hacks . | . . . . . . . . . . Terminals . | . . . . . . . . . . Fabricators . | . . . . . . . . . . Repair Stations . | . . . . . . . . . . Recycling Units . | . . . . . . . . . . Scanalyzers . | . . . . . . . . . . Garrison Access . | . . . . . . . . . . Data Cores Recovered . | . . . . . . . . . . Used . | . . . . . . . . . . Hacking Detections 34 | . 6 3 2 8 3 5 3 . 4 Full Trace Events 31 | . 6 3 1 8 2 5 2 . 4 Feedback Events 1 | . . . . . . . . . 1 Corruption 1 | . . . . . . . . . 1 Feedback Blocked . | . . . . . . . . . . Robot Schematics Acquired 1 | . . . . 1 . . . . . Robots Built 3 | . . . . . 3 . . . . Authchips . | . . . . . . . . . . Time 67 | . . . . . 67 . . . . Total Robot Build Rating 12 | . . . . . 12 . . . . Part Schematics Acquired 2 | . . 1 . . . 1 . . . Parts Built 2 | . . . . 2 . . . . . Authchips . | . . . . . . . . . . Time 36 | . . . . 36 . . . . . Total Part Build Rating 6 | . . . . 6 . . . . . Parts Repaired 2 | . . . . 2 . . . . . Time 44 | . . . . 44 . . . . . Parts Recycled . | . . . . . . . . . . Recycled Matter . | . . . . . . . . . . Retrieved Matter . | . . . . . . . . . . Retrieved Components . | . . . . . . . . . . Parts Scanalyzed 1 | . . 1 . . . . . . . Part Schematics Acquired 1 | . . 1 . . . . . . . Parts Damaged . | . . . . . . . . . . Bothacking | -11 -10 -9 -8 -7 -6 -6 -6 -6 -6 ------------ Run | Yrd Mat Mat Mat Fac Fac Ext Cet Arc Hub Used RIF Installer . | . . . . . . . . . . Robots Hacked . | . . . . . . . . . . Non-combat . | . . . . . . . . . . Combat . | . . . . . . . . . . Robot Hacks Applied . | . . . . . . . . . . Relay Couplers Released 4 | . . . . 4 . . . . . Machine Destruction 4 | . . . . 4 . . . . . Fabnet Peak Effective % . | . . . . . . . . . . Robots Rewired . | . . . . . . . . . . Allies Hacked . | . . . . . . . . . . Hacks Repelled . | . . . . . . . . . . Allies | -11 -10 -9 -8 -7 -6 -6 -6 -6 -6 -------- Run | Yrd Mat Mat Mat Fac Fac Ext Cet Arc Hub Total Allies 9 | . . . . . 3 6 . . . Largest Group 4 | . . . . . 3 4 3 . . Highest-Rated Group 254 | . . . . . 90 254 215 . . Highest-Rated Ally 159 | . . . . . 30 159 159 . . Total Orders . | . . . . . . . . . . Ally Attacks 87 | . . . . . 24 31 32 . . Total Damage 2342 | . . . . . 689 775 878 . . Kills 13 | . . . . . 2 4 7 . . Allies Corrupted 1 | . . . . . 1 . . . . Allies Melted . | . . . . . . . . . . Intel | -11 -10 -9 -8 -7 -6 -6 -6 -6 -6 ------- Run | Yrd Mat Mat Mat Fac Fac Ext Cet Arc Hub Robot Analysis Total 1 | . . . . . . 1 . . . Derelict Logs Recovered . | . . . . . . . . . . Drone Launches . | . . . . . . . . . . Drone Recoveries . | . . . . . . . . . . Exploration | -11 -10 -9 -8 -7 -6 -6 -6 -6 -6 ------------- Run | Yrd Mat Mat Mat Fac Fac Ext Cet Arc Hub Turns Passed 17231 | 79 2115 1720 1484 3917 4074 1910 548 331 1053 Spaces Moved 5089 | 44 718 442 348 1230 1181 521 181 116 308 Core 62 | 15 . . . . 47 . . . . Treads 4763 | 29 718 442 348 1230 870 521 181 116 308 Legs 264 | . . . . . 264 . . . . Wheels . | . . . . . . . . . . Hover . | . . . . . . . . . . Flight . | . . . . . . . . . . Fastest Speed 50 | 50 160 320 250 240 162 250 246 246 240 Average Speed 273 | 150 272 330 250 248 294 293 260 246 244 Slowest Speed 2550 | 160 320 490 250 250 2550 330 330 246 325 Overloaded Moves . | . . . . . . . . . . Propulsion Burnouts . | . . . . . . . . . . Robots Hopped . | . . . . . . . . . . Cave-ins Triggered . | . . . . . . . . . . Exploration Rate (%) 53 | 4 93 47 45 32 33 80 70 94 35 Regions Visited 9 Branch Regions 4 Pre-discovered Areas . | . . . . . . . . . . Known Exits Taken 9 | 1 1 1 1 1 1 1 1 1 . Unknown Exits Taken . | . . . . . . . . . . Scrap Searched . | . . . . . . . . . . Spaces Dug 2 | . . . 1 1 . . . . . Terrain Destroyed 113 | . . . 5 30 22 3 2 5 46 Melee . | . . . . . . . . . . Projectile 113 | . . . 5 30 22 3 2 5 46 AOE . | . . . . . . . . . . Terrain Rammed . | . . . . . . . . . . Walls Destroyed . | . . . . . . . . . . Machines Disabled . | . . . . . . . . . . Actions | -11 -10 -9 -8 -7 -6 -6 -6 -6 -6 --------- Run | Yrd Mat Mat Mat Fac Fac Ext Cet Arc Hub Total 6783 | 53 787 541 809 1636 1445 722 234 131 425 Wait 657 | . 8 6 359 115 41 91 28 . 9 Move 5080 | 43 717 441 347 1229 1180 520 180 115 308 Hop . | . . . . . . . . . . Pick Up 54 | 3 12 3 6 4 11 10 3 . 2 Fast Attach 37 | 7 . 3 2 5 18 . 2 . . Attach 44 | . 1 2 4 15 15 5 . . 2 Detach 6 | . . . 2 3 . . 1 . . Swap 37 | . 3 6 . 10 7 4 2 . 5 Drop 33 | . 1 1 9 4 7 . 5 . 6 Fire 816 | . 45 79 79 238 166 88 13 15 93 Melee . | . . . . . . . . . . Ram . | . . . . . . . . . . Kick . | . . . . . . . . . . Crush 9 | . . . 1 5 . 2 . 1 . Escape Stasis 10 | . . . . 8 . 2 . . . Rewire . | . . . . . . . . . . Trap . | . . . . . . . . . . Miscellaneous . | . . . . . . . . . . Route ------- -11/Scrapyard -10/Materials (discovered 5 exits: *Mat x3 / *Min x2) -9/Materials (discovered 3 exits: *Mat / *Sto x2) -8/Materials -7/Factory (discovered 4 exits: *Fac x2 / Low x2) -6/Factory (discovered 2 exits: *Low / *Ext) -6/Extension (discovered 3 exits: *Fac x2 / *Cet) -6/Cetus -6/Archives (discovered 3 exits: *Fac / *Hub x2) -6/Hub_04(d) (discovered 1 exit: *Fac) History --------- Turn | Location | Event 9 | -11/Scrapyard | Identified exit to Materials 9 | -11/Scrapyard | Discovered exit to Materials (range 16) 80 | -11/Scrapyard | Entered Materials 80 | -10/Materials | Evolved 1 slot: Utility x1 310 | -10/Materials | Build established: Hacker-Mutant 498 | -10/Materials | Identified exit to Mines 498 | -10/Materials | Discovered exit to Mines (range 14) 674 | -10/Materials | Identified exit to Materials 674 | -10/Materials | Discovered exit to Materials (range 14) 1188 | -10/Materials | Discovered exit to Materials (range 20) 1357 | -10/Materials | Discovered exit to Mines (range 15) 2099 | -10/Materials | Discovered exit to Materials (range 15) 2195 | -10/Materials | Entered another Materials area 2195 | -9/Materials | Evolved 2 slots: Power x1, Utility x1 2920 | -9/Materials | Identified exit to Storage 2920 | -9/Materials | Discovered exit to Storage (range 15) 3305 | -9/Materials | Discovered exit to Storage (range 15) 3683 | -9/Materials | Identified exit to Materials 3683 | -9/Materials | Discovered exit to Materials (range 15) 3915 | -9/Materials | Entered another Materials area 3915 | -8/Materials | Evolved 2 slots: Propulsion x2 4884 | -8/Materials | Garrison activated, responded to threat 5330 | -8/Materials | Identified exit to Factory 5330 | -8/Materials | Discovered exit to Factory (range 13) 5399 | -8/Materials | Entered Factory 5399 | -7/Factory | Evolved 2 slots: Utility x2 5605 | -7/Factory | Repaired Hvy. Ion Engine 5625 | -7/Factory | Repaired Arm. Treads 5628 | -7/Factory | Garrison activated, responded to threat 6605 | -7/Factory | Fabricated Arm. Treads (x2) 6868 | -7/Factory | Identified exit to Factory 6868 | -7/Factory | Discovered exit to Factory (range 14) 7720 | -7/Factory | Garrison activated, responded to threat 7820 | -7/Factory | Garrison activated, responded to threat 8238 | -7/Factory | Core integrity fell below 50% 8805 | -7/Factory | Lost 3 parts (3n) 9130 | -7/Factory | Identified exit to Lower Caves 9247 | -7/Factory | Discovered exit to Factory (range 16) 9316 | -7/Factory | Entered another Factory area 9316 | -6/Factory | Evolved 2 slots: Utility x2 10195 | -6/Factory | Fabricated L-41 Fighter (x3) 10491 | -6/Factory | Lost 5 parts (1p1n3u) 10546 | -6/Factory | Identified exit to Lower Caves 10546 | -6/Factory | Discovered exit to Lower Caves (range 6) 10753 | -6/Factory | Lost 4 parts (1p2n1u) 11018 | -6/Factory | Lost 3 parts (2n1u) 11545 | -6/Factory | Build established: Hauler-Mutant 11738 | -6/Factory | Spotted B-75 Beast 12005 | -6/Factory | Lost 3 parts (2p1u) 12681 | -6/Factory | Core integrity fell below 50% 13370 | -6/Factory | Identified exit to Extension 13370 | -6/Factory | Discovered exit to Extension (range 10) 13390 | -6/Factory | Entered Extension 13608 | -6/Extension | Identified exit to Factory 13640 | -6/Extension | Disrupted transfer network 14048 | -6/Extension | Spotted B-75 Beast 14157 | -6/Extension | Destroyed B-75 Beast 14189 | -6/Extension | Spotted B-75 Beast 14205 | -6/Extension | Core integrity fell below 20% 14227 | -6/Extension | Destroyed B-75 Beast 14641 | -6/Extension | Rescued a captive Derelict 14641 | -6/Extension | Rescued a captive Derelict 14851 | -6/Extension | Rescued a captive Derelict 14871 | -6/Extension | Rescued a captive Derelict 14872 | -6/Extension | Rescued a captive Derelict 14943 | -6/Extension | Rescued A7 15267 | -6/Extension | Identified exit to Cetus 15267 | -6/Extension | Discovered exit to Cetus (range 6) 15300 | -6/Extension | Entered Cetus 15300 | -6/Cetus | Accompanied by 3 allies (A7) 15305 | -6/Cetus | Acquired a Cetus Manufacturing Module code from A7 15333 | -6/Cetus | Spotted Cetus Guard 15333 | -6/Cetus | Spotted Cetus Guard 15333 | -6/Cetus | Spotted Cetus Guard 15337 | -6/Cetus | Spotted Cetus Guard 15340 | -6/Cetus | Allies destroyed Cetus Guard 15350 | -6/Cetus | Allies destroyed Cetus Guard 15366 | -6/Cetus | Allies destroyed Cetus Guard 15368 | -6/Cetus | Destroyed Cetus Guard 15730 | -6/Cetus | Identified exit to Archives 15730 | -6/Cetus | Discovered exit to Archives (range 21) 15804 | -6/Cetus | Spotted Cetus Guard 15804 | -6/Cetus | Spotted Cetus Guard 15804 | -6/Cetus | Spotted Cetus Guard 15808 | -6/Cetus | Spotted Cetus Guard 15848 | -6/Cetus | Entered Archives 15962 | -6/Archives | Unable to access archive contents 15975 | -6/Archives | Identified exit to Hub_04(d) 15975 | -6/Archives | Discovered exit to Hub_04(d) (range 21) 16004 | -6/Archives | Discovered exit to Hub_04(d) (range 22) 16016 | -6/Archives | Unable to access archive contents 16029 | -6/Archives | Discovered exit to Factory (range 21) 16041 | -6/Archives | Unable to access archive contents 16179 | -6/Archives | Entered Hub_04(d) 16298 | -6/Hub_04(d) | Discovered exit to Factory (range 6) 17229 | -6/Hub_04(d) | First assault squad dispatched 17232 | -6/Hub_04(d) | Destroyed by G-50 Soldier with Heavy Laser Last Messages --------------- 17217_ Acquired 3 matter. 17217_ K-01 Serf collects debris. 17219_ Slug penetrates G-50 Soldier. 17220_ Acquired 8 matter. 17220_ K-01 Serf collects debris. 17222_ Slug penetrates G-50 Soldier. 17223_ Acquired 6 matter. 17225_ U-05 Engineer builds a Wall. 17225_ Identified Centrium Medium Armor Plating. 17226_ Slug penetrates G-50 Soldier. 17226_ U-05 Engineer destroyed. 17227_ K-01 Serf collects debris. 17229_ ALERT: Significant disruption in Zone 4R, assault force dispatched. 17229_ Slug penetrates G-50 Soldier. 17229_ K-01 Serf suffers critical hit (Destroy). 17229_ Destroyed Lgt. Ion Engine. 17229_ Slug penetrates G-50 Soldier. 17229_ K-01 Serf destroyed. 17230_ K-01 Serf collects debris. Map ----- +----------------------------------------------------+ | ?????????????????????????????????????????????????? | | ?????????????????????????????????????????????????? | | ?????????????????????????????????????????????????? | | ?????????????????????????????????????????????????? | | ?????????????????????????????????????????????????? | | ?????????????????????????????????????????????????? | | ?????????????????????????????????????????????????? | | ?????????????????????????????????????????????????? | | ?????????????????????????????????????????????????? | | ??????????????????????????##?????????????????????? | | ?????????????????????????? ?????????????????????? | | ?????????????????????????? ?????????????????????? | | ?????????????????????????? ?????????????????????? | | ????????????????????????? ?????????????????????? | | ????????????????????????? ?????????????????????? | | ????????????????????????? ?????????????????????? | | ??????????????????????####+#####?????????????????? | | ????????????###??###??# #?????????????????? | | ?????????????! ?! ?# """" #??##?????????????? | | ?????????????? ? # """" #?# #?????????????? | | ???????????????"" """ #o """" ## #??????????????? | | ????????????????? # """ # ##"T # #? | | ??????????????????""" # ==| ; #?#"" # #? | | ?????????????????? + %*k!!##??#"" # #? | | ??????????????????""" # !gg=k%#???# #######? | | ?????????????????? # @gk=%|#???######+#??????? | | ?????????########+#########/############# ######## | | ? [%=* =%!!|!==%!===*==[! | | ? *%!= *|%***%=*!%=|!=!=* * | | ? ==%* !==!%[[=%!**%!==%= =%! | | ???#########T################*!=#########|##+##### | | ????????????????????????????#!==##??????# # ? | | ???????????????????????????##==!#=#?????# + ? | | ?????????????????????##?????#[=%###?????# # ? | | ?????????????????????# #????#%==##??????# # """"? | | ??????????????????????# #???#[*=###?????# # """"? | | ????????################"####!=!=T#?????# # """"? | | ????????# !*!!]! !!%!* ==*""#?????# # """"? | | ????????# *=*%=!! !=!* ###?????# # ? | | ????????# ==!%!! ! ##???####+######+? | | ????????#=! #######################??# # ? | | ####?####|%=#????###?#?????# #??# # ? | | ! # *!#??????????????# " " #??# # ? | | # #?????########## " " #??# + ? | | # !#?????# ? " " #??# """" # ? | | ?? / [[#?????# ######## #??# """" # ? | | ????? #===#?############## #??# """" + ? | | ]#!!!### ####+###??# """" ##? | | #[!%%=+ """" """" + #????##?########?? | | +[*!### """" """" # #?????# #??######? | +----------------------------------------------------+ Best States ------------- Heat Dissipation 56 Energy Generation 45 Energy Capacity 560 Matter Stores 650 Matter Capacity 650 Sight Range 22 Terrain Scan Range 14 Terrain Scan Density 10 Power Amplification 20 Additional Mass Support 12 Armor Coverage 225 Resistance: KI 65 Resistance: TH 35 Resistance: EX 35 Resistance: EM 35 Resistance: I 35 Resistance: S 35 Resistance: P 35 Core Shielding 20 Utility Shielding 33 Evasion (%) 40 Targeting Accuracy 11 Recoil Reduction 4 Kinecelleration 30 Offensive Hacking 20 Item Schematics ----------------- Arm. Treads | -9/Materials | Scanalyzed Angular Momentum Engine | -6/Extension | Hacked Robot Schematics ------------------ L-41 Fighter | -7/Factory | Hacked Fabricated ------------ Arm. Treads | x2 | -7/Factory L-41 Fighter | x3 | -6/Factory Alien Tech Used ----------------- None Achievements -------------- None Challenges ------------ None Game ------ Seed WaveMolecularTrident Manual? 0 Play Time 01:33:53 Cumulative 1944.9 hours Start 2024.12.08 @ 07:07:31 End 2024.12.08 @ 20:57:23 Sessions 5 Manual Loads 0 Difficulty Explorer Special Mode None Game No. 999 Rogue 62 Adventurer 0 Explorer 937 Win Type - Total 11 Types 11/0/0/0/0/0/0/0/0 Lore% 45 Gallery% 77 Achievement% 64 Wizard Run 0 Options --------- Layout 1 ASCII 0 Keyboard 0 Movement Mouse Keybinds 0 Fullscreen 1 Font 48/Smallcaps Map View 55x35 Zoom Use 0% Tactical HUD 1 Map Filters NONE Filters NONE Steam 1 RUN: 5f72ca4d-34a0-4c9b-9eb6-52e090b1354f